bitfinex-derivatives/quotes_ETHF0:USTF0_20240830
["timestamp","ask_amount","ask_price","bid_price","bid_amount"]
[1725047027500,0.39979,2501.5,2501.2,0.0059976]
[1725047027700,7.75589981,2501.8,2501.2,0.0059976]
[1725047027701,0.39977,2501.6,2501.2,0.0059976]
[1725047027891,7.75589981,2501.8,2501.2,0.0059976]
[1725047027892,3.2137976,2501.8,2501.2,0.0059976]
[1725047028094,0.39978,2501.5,2501.2,0.0059976]
[1725047028492,4.2131276,2501.8,2501.2,0.0059976]
[1725047028703,0.3998,2501.4,2501.2,0.0059976]
[1725047028906,0.39981,2501.3,2501.2,0.0059976]
[1725047029503,0.3998,2501.4,2501.2,0.0059976]
[1725047030207,3.2078,2501.5,2501.2,0.0059976]
[1725047030401,0.39981,2501.3,2501.2,0.0059976]
[1725047033203,0.39988,2500.9,2500.4,3.5659]
[1725047033405,0.99944,2501.6,2500.7,0.3999]
[1725047033406,0.39985,2501.1,2500.7,0.3999]
[1725047033705,0.39985,2501.1,2500.6,0.39991]
[1725047034098,0.99944,2501.6,2500.5,0.3728]
[1725047034099,3.2078,2501.2,2500.5,0.3728]
[1725047034295,0.99944,2501.6,2500.8,0.39988]
[1725047034296,4.20724,2501.6,2500.8,0.39988]
[1725047034613,3.2078,2501.6,2501.4,0.39978]
[1725047034903,3.2078,2501.6,2501.0,3.2078]
[1725047034904,3.2078,2501.6,2501.0,4.20742]
[1725047035108,3.2078,2501.6,2501.5,0.39978]
[1725047035310,3.2078,2502.1,2501.7,0.39974]
[1725047035908,3.2078,2502.1,2501.7,4.39734]
[1725047036308,5.24655782,2502.7,2501.7,4.39734]
[1725047036309,0.39963,2502.5,2501.7,4.39734]
[1725047036506,0.39965,2502.3,2501.7,4.39734]
[1725047036699,3.2078,2502.6,2501.7,10.39734]
[1725047036898,3.6074,2502.6,2501.7,9.9976]
[1725047037102,3.6074,2502.6,2502.2,0.39966]
[1725047037103,0.3996,2502.6,2502.2,0.39966]
[1725047037407,4.20679,2502.7,2501.6,3.2078]
[1725047037712,3.2078,2502.4,2501.7,0.3907]
[1725047037907,0.0059976,2502.4,2502.1,0.39967]
[1725047038204,0.0059976,2502.4,2502.3,0.39965]
[1725047038612,0.0059976,2502.4,2502.3,4.39565]
[1725047039000,0.0059976,2502.4,2502.2,0.39965]
[1725047039310,0.0059976,2502.4,2502.1,0.39967]
[1725047039497,0.0059976,2502.4,2502.2,0.39966]
[1725047039699,0.0059976,2502.4,2502.1,0.39967]
[1725047039899,0.39965,2502.3,2501.9,0.4057076]
[1725047040121,0.0059976,2502.4,2501.9,0.0059976]
[1725047040122,0.39967,2502.2,2501.9,0.0059976]
[1725047040419,0.0059976,2502.4,2502.0,0.3997]
[1725047040712,0.39967,2502.2,2501.9,0.0059976]
[1725047041010,0.39966,2502.3,2501.9,0.0059976]
[1725047041214,0.4056376,2502.4,2501.9,0.4057076]
[1725047041513,0.0059976,2502.4,2501.9,0.0059976]
[1725047042010,0.0059976,2502.4,2502.0,0.39969]
[1725047042011,0.4056376,2502.4,2502.0,0.39969]
[1725047042206,0.4056376,2502.4,2501.9,0.0059976]
[1725047042207,0.0059976,2502.4,2502.1,0.39968]
[1725047042706,0.0059976,2502.4,2502.3,0.39965]
[1725047043208,0.0059976,2502.4,2502.2,0.39965]
[1725047043411,0.0059976,2502.4,2502.3,0.39965]
[1725047043905,0.0059976,2502.4,2502.1,3.2078]
[1725047044106,0.0059976,2502.4,2502.2,0.39966]
[1725047044308,0.0059976,2502.4,2501.9,0.0059976]
[1725047044517,0.0059976,2502.4,2501.0,3.2078]
[1725047044518,0.3997,2502.0,2501.0,3.2078]
[1725047044721,4.20722,2501.6,2500.8,0.7544]
[1725047045011,3.2078,2501.6,2501.2,0.39982]
[1725047045207,0.99925,2502.0,2501.3,0.3998]
[1725047045413,0.39978,2501.5,2501.0,3.2078]
[1725047045606,0.99945,2501.5,2501.0,0.0059976]
[1725047045803,0.39982,2501.3,2501.0,0.0059976]
[1725047046107,0.39984,2501.1,2501.0,0.0059976]
[1725047046312,3.2078,2501.5,2501.0,0.0059976]
[1725047046313,0.39983,2501.2,2501.0,0.0059976]
[1725047046608,3.2078,2501.8,2501.0,0.0059976]
[1725047046810,3.2078,2501.8,2501.3,0.39979]
[1725047047011,0.39976,2501.6,2501.2,0.39981]
[1725047047204,0.39976,2501.6,2501.1,0.78773]
[1725047047512,3.2078,2501.8,2501.1,0.3879]
[1725047047720,0.39978,2501.5,2501.1,0.78773]
[1725047048007,0.39979,2501.4,2501.1,0.3879]
[1725047048411,0.39978,2501.5,2501.1,0.78774]
[1725047048603,0.39977,2501.6,2501.1,0.78774]
[1725047048804,0.39978,2501.5,2501.1,0.78773]
[1725047049013,0.39979,2501.4,2501.1,0.3879]
[1725047049215,0.39977,2501.6,2501.2,0.39982]
[1725047049413,3.60753,2501.8,2501.1,0.3879]
[1725047049606,3.60753,2501.8,2501.4,0.39979]
[1725047050009,0.39975,2501.7,2501.3,0.3998]
[1725047050314,0.39975,2501.7,2501.3,3.2078]
[1725047050505,3.2078,2501.8,2501.1,0.3879]
[1725047050907,3.2078,2502.1,2501.2,4.20737]
[1725047051115,4.20702,2502.1,2501.2,3.5751]
[1725047051412,4.20702,2502.1,2501.2,0.3673]
[1725047051608,4.20714,2501.8,2501.2,0.3673]
[1725047051807,4.20714,2501.8,2501.2,0.76712]
[1725047052113,0.39977,2501.6,2501.2,0.39982]
[1725047052309,4.20714,2501.8,2501.0,0.0059976]
[1725047052503,3.2078,2501.5,2501.0,0.0059976]
[1725047052707,0.99941,2501.6,2501.0,0.0059976]
[1725047052903,0.3609,2501.7,2501.1,0.39983]
[1725047052904,0.39978,2501.5,2501.1,0.39983]
[1725047053205,0.39981,2501.3,2501.0,0.4058476]
[1725047053406,0.39981,2501.3,2501.0,0.0059976]
[1725047053616,3.2078,2501.5,2501.0,0.0059976]
[1725047053617,4.20726,2501.5,2501.0,0.0059976]
[1725047053913,0.39981,2501.3,2501.0,0.0059976]
[1725047054609,0.39976,2501.6,2501.2,0.39982]
[1725047054805,3.2078,2501.7,2501.0,0.0059976]
[1725047055114,0.39978,2501.5,2501.1,0.39983]
[1725047055504,3.2078,2501.7,2501.2,0.39982]
[1725047055706,0.39977,2501.6,2501.2,0.39982]
[1725047056318,0.39977,2501.6,2501.3,0.3998]
[1725047056612,0.39984,2501.1,2501.0,0.0059976]
[1725047056917,4.60725,2501.1,2501.0,0.0059976]
[1725047057614,3.60764,2501.1,2501.0,0.0059976]
[1725047057807,0.99977,2500.7,2500.3,0.3559]
[1725047058009,0.9999,2500.4,2499.7,3.2078]
[1725047058218,0.4,2500.1,2499.8,0.40004]
[1725047058404,1.00007,2500.0,2499.4,0.7537]
[1725047058609,0.40006,2499.8,2499.4,1.1538]
[1725047058809,0.0059976,2499.8,2499.4,3.9674976]
[1725047059115,0.0059976,2499.8,2499.6,0.40007]
[1725047059319,0.0059976,2499.8,2499.7,3.2078]
[1725047060214,0.4060576,2499.8,2499.4,1.1598076]
[1725047060810,0.40006,2499.7,2499.4,0.4061076]
[1725047061014,0.4060476,2499.8,2499.4,0.4061076]
[1725047061415,0.4060476,2499.8,2499.4,3.6139076]
[1725047061717,0.40006,2499.7,2499.4,3.2137976]
[1725047061916,0.0059976,2499.8,2499.4,3.2137976]
[1725047062110,0.0059976,2499.8,2499.5,0.40009]
[1725047062305,0.0059976,2499.8,2499.6,0.40008]
[1725047062505,0.0059976,2499.8,2499.7,0.40006]
[1725047062916,0.0059976,2499.8,2499.7,4.40086]
[1725047063519,0.00249397,2499.8,2499.7,7.60866]
[1725047064314,0.00249397,2499.8,2499.7,14.60883]
[1725047065217,0.00249397,2499.8,2499.7,13.60866]
[1725047065411,0.00249397,2499.8,2499.7,7.60866]
[1725047065617,0.00249397,2499.8,2499.7,13.60866]
[1725047065822,0.00249397,2499.8,2499.7,3.60786]
[1725047066422,0.00249397,2499.8,2499.6,0.3747]
[1725047066737,0.40254397,2499.8,2499.6,0.3747]
[1725047066918,8.42249763,2499.7,2499.4,0.0059976]
[1725047067123,0.4001,2499.5,2499.4,0.0059976]
[1725047067325,1.40035,2499.5,2499.4,0.0059976]
[1725047067520,4.4009,2499.5,2499.4,0.0059976]
[1725047067725,0.4001,2499.5,2499.4,0.0059976]
[1725047067921,4.4009,2499.5,2499.4,0.0059976]
[1725047068426,5.40115,2499.5,2499.4,0.0059976]
[1725047068730,4.4009,2499.5,2499.4,0.0059976]
[1725047069231,3.2078,2499.7,2499.4,0.0059976]
[1725047069422,0.40009,2499.6,2499.4,0.0059976]
[1725047069622,0.4001,2499.5,2499.4,0.0059976]
[1725047070034,4.4009,2499.5,2499.4,0.0059976]
[1725047070623,0.4001,2499.5,2499.4,0.0059976]
[1725047071030,4.4009,2499.5,2499.4,0.0059976]
[1725047071531,0.40008,2499.6,2499.4,0.0059976]
[1725047071734,0.40008,2499.6,2499.4,0.4061076]
[1725047071920,0.4001,2499.5,2499.4,0.0059976]
[1725047072125,3.2078,2499.7,2499.4,0.0059976]
[1725047072326,0.40009,2499.6,2499.4,0.4061076]
[1725047072530,0.40008,2499.6,2499.4,0.4060976]
[1725047073129,0.40008,2499.6,2499.4,0.0059976]
[1725047073331,0.40008,2499.6,2499.4,0.4061076]
[1725047074035,3.60787,2499.7,2499.5,0.40009]
[1725047074424,3.60787,2499.7,2499.4,0.4060976]
[1725047074624,3.60787,2499.7,2499.4,0.0059976]
[1725047074824,3.60787,2499.7,2499.6,0.40008]
[1725047074825,3.2078,2499.7,2499.6,0.40008]
[1725047075229,3.2078,2499.7,2499.6,4.40088]
[1725047075424,0.00249397,2499.8,2499.7,0.40006]
[1725047075826,0.00249397,2499.8,2499.7,4.40086]
[1725047076025,0.00249397,2499.8,2499.7,7.60866]
[1725047076832,0.00249397,2499.8,2499.7,14.60883]
[1725047077027,3.2078,2500.5,2499.9,1.00007]
[1725047077228,3.2078,2500.5,2500.2,0.39998]
[1725047077229,3.60774,2500.5,2500.2,0.39998]
[1725047077426,3.2078,2500.5,2500.3,0.39996]
[1725047077630,0.3906,2500.7,2500.4,0.39995]
[1725047077631,0.3999,2500.7,2500.4,0.39995]
[1725047077832,0.3999,2500.7,2500.5,0.39993]
[1725047078135,0.3999,2500.7,2500.4,0.39994]
[1725047078435,0.39991,2500.7,2500.4,0.39995]
[1725047078831,4.20754,2500.8,2500.2,0.3756]
[1725047079039,4.20755,2500.8,2500.2,0.3756]
[1725047079334,0.39994,2500.5,2500.2,0.77557]
[1725047079535,0.39993,2500.6,2500.2,0.77557]
[1725047079832,0.39993,2500.6,2500.3,0.39996]
[1725047080037,0.39991,2500.7,2500.4,0.39995]
[1725047080238,0.3999,2500.7,2500.2,0.3756]
[1725047080538,0.39994,2500.5,2500.2,0.77558]
[1725047081035,0.99977,2500.7,2500.2,0.3756]
[1725047081236,0.39993,2500.6,2500.3,0.39997]
[1725047081429,0.39994,2500.5,2500.2,0.77557]
[1725047081631,0.99977,2500.7,2500.2,0.3756]
[1725047081632,0.39995,2500.4,2500.2,0.3756]
[1725047081939,0.39997,2500.3,2500.2,0.3756]
[1725047082430,0.99982,2500.6,2500.2,0.77558]
[1725047082632,0.39994,2500.5,2500.2,0.77558]
[1725047082938,0.39996,2500.4,2500.2,0.3756]
[1725047083140,0.39997,2500.3,2500.2,0.3756]
[1725047084243,0.39998,2500.2,2500.0,0.4]
[1725047084440,3.2078,2500.5,2499.8,1.38172]
[1725047084629,0.39997,2500.3,2500.1,0.39999]
[1725047084938,0.9998,2500.7,2499.8,0.3816]
[1725047085137,0.39995,2500.5,2500.2,0.39997]
[1725047085338,0.39995,2500.4,2500.2,0.39997]
[1725047085538,0.99981,2500.6,2500.1,0.39999]
[1725047085739,0.39997,2500.3,2500.1,0.39999]
[1725047086139,0.39997,2500.3,2500.0,0.4]
[1725047086945,0.39998,2500.2,2500.0,0.4]
[1725047087439,0.39998,2500.2,2499.9,3.60782]
[1725047087637,1.0,2500.1,2499.4,0.0059976]
[1725047087836,2.4006,2499.5,2499.4,0.0059976]
[1725047088231,6.4014,2499.5,2499.4,0.0059976]
[1725047088632,4.4009,2499.5,2499.4,0.0059976]
[1725047088832,5.40115,2499.5,2499.4,0.0059976]
[1725047089340,15.89769555,2499.5,2499.4,0.0059976]
[1725047089546,14.87374555,2499.5,2498.1,1.0405336]
[1725047089847,0.40037,2497.8,2497.7,3.2078]
[1725047090136,3.2078,2498.2,2497.3,3.9939]
[1725047090343,0.40033,2498.1,2497.7,0.40038]
[1725047090530,0.0059976,2498.1,2497.7,3.6141676]
[1725047090844,0.40034,2498.0,2497.7,0.0059976]
[1725047091041,0.40035,2497.9,2497.7,0.0059976]
[1725047091235,0.0059976,2498.1,2497.7,0.0059976]
[1725047091431,0.40036,2497.9,2497.7,0.0059976]
[1725047091738,0.0059976,2498.1,2497.7,0.4063676]
[1725047092045,0.40034,2498.0,2497.7,0.0059976]
[1725047092234,0.0059976,2498.1,2497.7,0.4063776]
[1725047092235,0.4063276,2498.1,2497.7,0.4063776]
[1725047092428,0.0059976,2498.1,2497.7,0.0059976]
[1725047092635,0.4063176,2498.1,2497.7,0.4063776]
[1725047093035,0.0059976,2498.1,2497.8,0.40036]
[1725047093241,0.4063176,2498.1,2497.7,0.4063776]
[1725047093438,0.0059976,2498.1,2497.7,0.0059976]
[1725047093642,0.0059976,2498.1,2497.7,0.4063676]
[1725047093940,0.4063276,2498.1,2497.7,0.0059976]
[1725047094144,0.0059976,2498.1,2497.7,0.0059976]
[1725047094343,0.0059976,2498.1,2498.0,0.40034]
[1725047094745,0.0059976,2498.1,2498.0,4.40354]
[1725047096343,0.0059976,2498.1,2498.0,0.40034]
[1725047098045,0.0059976,2498.1,2497.9,3.60815]
[1725047098348,0.40034,2498.0,2497.9,3.2078]
[1725047098948,0.4063276,2498.1,2497.9,3.2078]
[1725047099144,0.40034,2498.0,2497.9,3.2078]
[1725047099449,0.4063276,2498.1,2497.9,3.2078]
[1725047099745,0.40034,2498.0,2497.9,3.2078]
[1725047100148,0.0059976,2498.1,2497.9,3.2078]
[1725047100651,0.40034,2498.0,2497.9,3.2078]
[1725047100853,0.40037,2497.8,2497.7,0.0059976]
[1725047101452,0.40034,2498.0,2497.7,0.4063776]
[1725047101660,0.0059976,2498.1,2497.7,0.0059976]
[1725047101943,0.4063176,2498.1,2497.7,0.0059976]
[1725047102147,0.0059976,2498.1,2498.0,0.40034]
[1725047102341,0.0059976,2498.1,2498.0,3.60814]
[1725047102542,4.4095176,2498.1,2497.8,0.40036]
[1725047102754,0.40034,2498.0,2497.7,3.6141776]
[1725047103053,0.0059976,2498.1,2497.7,3.2137976]
[1725047103355,0.0059976,2498.1,2498.0,3.60814]
[1725047103758,0.0059976,2498.1,2498.0,7.61134]
[1725047103962,0.0059976,2498.1,2498.0,13.97844]
[1725047104144,3.2078,2498.6,2498.0,14.57895]
[1725047104346,3.2078,2499.0,2498.3,4.20853]
[1725047104545,3.2078,2499.3,2498.4,0.7493]
[1725047104850,3.2078,2499.3,2498.6,4.20838]
[1725047105044,3.60787,2499.7,2499.0,3.2078]
[1725047105251,0.0059976,2499.2,2499.1,0.0059976]
[1725047105851,0.0059976,2499.2,2499.1,4.4077576]
[1725047106648,0.0059976,2499.2,2499.1,0.4061576]
[1725047106950,3.2078,2499.7,2499.4,0.4001]
[1725047107151,3.2078,2499.7,2499.1,0.0059976]
[1725047107350,3.2078,2500.1,2499.2,7.6094]
[1725047107656,0.39998,2500.2,2499.7,0.40005]
[1725047107953,0.39998,2500.2,2499.6,3.2078]
[1725047107954,0.0059976,2500.2,2500.0,0.40001]
[1725047108156,0.0059976,2500.2,2500.1,0.4]
[1725047108362,3.2078,2500.7,2500.3,0.39995]
[1725047108661,3.2078,2500.7,2500.0,3.2078]
[1725047108849,3.2078,2500.7,2500.1,0.3849]
[1725047109051,3.2078,2500.7,2500.3,0.39995]
[1725047109760,3.2078,2500.7,2500.2,0.39997]
[1725047110254,3.2078,2500.7,2500.1,0.3849]
[1725047110448,3.2078,2500.7,2499.9,0.3589]
[1725047110449,3.2078,2500.7,2499.9,0.75892]
[1725047110751,4.28052448,2500.6,2500.2,0.39997]
[1725047110946,3.60772,2500.7,2500.1,0.39999]
[1725047111346,3.60772,2500.7,2499.7,0.3564]
[1725047111347,0.39999,2500.2,2499.7,0.3564]
[1725047111547,0.99985,2500.5,2499.7,0.75646]
[1725047111750,3.2078,2500.4,2499.7,3.5642]
[1725047111960,3.2078,2500.4,2499.7,3.96426]
[1725047112150,0.39999,2500.2,2499.7,3.5642]
[1725047112459,0.40003,2499.9,2499.4,0.4001]
[1725047112761,0.39996,2500.4,2499.8,0.40004]
[1725047113061,3.2078,2500.5,2499.9,0.40003]
[1725047113062,3.60774,2500.5,2499.9,0.40003]
[1725047113352,3.2078,2500.5,2500.2,0.39998]
[1725047113554,3.2078,2500.5,2500.3,0.39996]
[1725047113750,3.2078,2500.5,2499.9,3.60782]
[1725047113952,0.39996,2500.4,2499.9,3.60782]
[1725047114166,3.2078,2500.7,2499.9,3.2078]
[1725047114347,3.2078,2500.7,2499.9,3.60782]
[1725047114348,0.39995,2500.5,2499.9,3.60782]
[1725047114555,3.2078,2500.4,2499.9,3.2078]
[1725047114855,0.39998,2500.2,2499.9,3.2078]
[1725047115156,4.20769,2500.4,2499.9,3.2078]
[1725047115357,3.2078,2500.1,2499.4,0.3537]
[1725047115547,0.40007,2499.7,2499.4,0.3537]
[1725047115755,3.2078,2500.1,2499.4,0.3537]
[1725047116062,0.40002,2500.0,2499.6,0.40007]
[1725047116357,1.76777,2500.5,2499.5,3.2078]
[1725047116358,0.39999,2500.2,2499.5,3.2078]
[1725047116558,3.2078,2500.4,2499.8,3.2078]
[1725047116859,0.39993,2500.6,2499.8,3.2078]
[1725047117063,0.39993,2500.6,2500.2,0.39998]
[1725047117258,3.60771,2500.7,2500.3,0.39997]
[1725047117759,0.39994,2500.5,2500.1,3.6078]
[1725047117963,0.39994,2500.5,2500.1,3.60779]
[1725047118265,0.39994,2500.5,2500.1,0.39999]
[1725047118451,0.39993,2500.6,2500.2,0.39998]
[1725047119060,0.39993,2500.6,2499.8,4.20791]
[1725047119061,3.2078,2500.7,2500.1,3.2078]
[1725047119354,0.0059976,2500.8,2500.5,0.39992]
[1725047119751,0.0059976,2500.8,2500.6,0.39992]
[1725047120560,0.0059976,2500.8,2500.6,0.39991]
[1725047120959,0.0059976,2500.8,2500.7,0.3999]
[1725047121862,0.0059976,2500.8,2500.5,3.2078]
[1725047122051,0.4058876,2500.8,2500.5,3.2078]
[1725047122256,0.0059976,2500.8,2500.5,3.2078]
[1725047122461,0.0059976,2500.8,2500.7,0.3999]
[1725047123259,0.0059976,2500.8,2500.7,4.3991]
[1725047123662,0.00249505,2500.8,2500.5,3.2078]
[1725047123862,0.99985,2500.5,2500.4,0.0059976]
[1725047124165,4.60759,2500.5,2500.4,0.0059976]
[1725047124369,0.4,2500.1,2499.6,3.5652]
[1725047124665,0.39996,2500.4,2500.0,0.40001]
[1725047124861,3.2078,2500.5,2500.0,0.40001]
[1725047125061,3.2078,2500.5,2500.2,0.39998]
[1725047125258,3.2078,2500.5,2500.3,0.39996]
[1725047125461,0.00249505,2500.8,2500.5,0.39993]
[1725047125863,0.00249505,2500.8,2500.6,0.39992]
[1725047126161,0.00249505,2500.8,2500.6,0.39991]
[1725047126363,0.40238505,2500.8,2500.5,0.39993]
[1725047126669,0.00249505,2500.8,2500.7,0.3999]
[1725047127264,0.00249505,2500.8,2500.7,4.3991]
[1725047128466,0.00249505,2500.8,2500.7,4.59969037]
[1725047128859,3.5972,2501.6,2500.7,11.19956037]
[1725047129059,0.3998,2501.4,2501.0,0.39984]
[1725047129266,0.3998,2501.4,2500.8,0.3556]
[1725047129658,0.3998,2501.4,2501.1,0.39984]
[1725047129858,0.0059976,2501.5,2500.9,3.2078]
[1725047130065,0.4057776,2501.5,2501.1,0.39983]
[1725047130260,0.4057776,2501.5,2500.9,3.2078]
[1725047130261,0.4057776,2501.5,2501.2,0.39982]
[1725047130461,0.4057776,2501.5,2501.1,0.39983]
[1725047130662,0.3998,2501.4,2501.1,0.39983]
[1725047130968,0.3998,2501.4,2501.1,0.39984]
[1725047131365,0.3998,2501.4,2501.0,0.39985]
[1725047131668,0.39981,2501.3,2501.0,0.39985]
[1725047132067,0.3998,2501.4,2501.1,0.39984]
[1725047132378,3.6135776,2501.5,2501.2,0.39981]
[1725047132569,3.2137976,2501.5,2501.0,0.3886]
[1725047132766,3.6135776,2501.5,2501.2,0.39981]
[1725047132969,3.2137976,2501.5,2501.1,0.3641]
[1725047133172,0.0059976,2501.5,2501.3,0.3998]
[1725047133465,0.4057776,2501.5,2501.1,0.3641]
[1725047133671,0.4057776,2501.5,2501.2,0.39981]
[1725047133878,0.0059976,2501.5,2501.3,0.3998]
[1725047134063,0.0059976,2501.5,2501.4,0.39979]
[1725047138278,0.0059976,2501.5,2501.4,11.39688]
[1725047138777,3.2078,2501.9,2501.8,0.39973]
[1725047138992,3.2078,2502.3,2502.2,0.39966]
[1725047139291,3.5952,2502.6,2502.3,0.39964]
[1725047139574,3.99481,2502.6,2502.3,0.39964]
[1725047139767,3.2078,2502.6,2502.2,0.0059976]
[1725047139968,3.6074,2502.6,2502.2,0.0059976]
[1725047140180,3.2078,2502.6,2502.4,0.39963]
[1725047140486,3.60741,2502.6,2502.3,0.39964]
[1725047140777,3.2078,2502.6,2502.4,0.39963]
[1725047141369,3.2078,2502.6,2502.4,0.39962]
[1725047142689,3.2078,2502.6,2502.3,0.39963]
[1725047143177,3.2078,2502.6,2502.2,0.0059976]
[1725047143178,3.2078,2502.6,2502.4,0.39963]
[1725047143585,3.2078,2502.6,2502.2,0.0059976]
[1725047143776,0.00387566,2502.7,2502.6,0.3996]
[1725047145577,0.00387566,2502.7,2502.6,1.39861]
[1725047145785,0.00387566,2502.7,2502.6,4.3956]
[1725047145981,0.00387566,2502.7,2502.6,5.75581]
[1725047146371,3.99987566,2502.7,2502.5,3.2078]
[1725047146575,3.99987566,2502.7,2502.6,0.3996]
[1725047146576,0.00387566,2502.7,2502.6,0.3996]
[1725047146874,0.3996,2502.6,2502.5,3.2078]
[1725047147087,0.3996,2502.6,2502.3,0.3754]
[1725047147088,3.996,2502.6,2502.3,0.39964]
[1725047147285,0.00387566,2502.7,2502.3,0.39964]
[1725047147579,0.40346566,2502.7,2502.2,0.0059976]
[1725047147776,0.40346566,2502.7,2502.3,0.39964]
[1725047147980,0.40345566,2502.7,2502.3,0.39964]
[1725047148180,0.00387566,2502.7,2502.2,0.0059976]
[1725047148378,0.00387566,2502.7,2502.4,0.39963]
[1725047148872,0.00387566,2502.7,2502.2,4.6159976]
[1725047149481,0.00387566,2502.7,2502.6,0.3996]
[1725047149682,0.00387566,2502.7,2502.5,0.39961]
[1725047150479,0.00387566,2502.7,2502.6,0.3996]
[1725047150687,0.00387566,2502.7,2502.2,8.1920976]
[1725047150981,0.00387566,2502.7,2502.4,0.39963]
[1725047151385,0.00387566,2502.7,2502.4,0.39962]
[1725047151577,0.00387566,2502.7,2502.2,8.1920976]
[1725047151777,0.00387566,2502.7,2502.4,0.39962]
[1725047152178,0.00387566,2502.7,2502.5,0.39962]
[1725047152995,0.00387566,2502.7,2502.6,0.3996]
[1725047153383,4.39946566,2502.7,2502.3,0.39965]
[1725047153581,4.39946566,2502.7,2502.2,4.9842976]
[1725047153582,0.3996,2502.6,2502.2,5.3839476]
[1725047153783,0.40346566,2502.7,2502.3,0.39965]
[1725047153983,0.00387566,2502.7,2502.2,0.0059976]
[1725047154285,0.39961,2502.6,2502.3,0.39965]
[1725047154487,0.39962,2502.5,2502.2,0.4056576]
[1725047154678,0.00387566,2502.7,2502.2,0.4056576]
[1725047154679,0.39961,2502.6,2502.2,0.4056576]
[1725047154880,0.39961,2502.6,2502.3,0.39965]
[1725047155075,0.39962,2502.5,2502.2,0.4056476]
[1725047155287,0.39962,2502.5,2502.3,0.39965]
[1725047155591,0.00387566,2502.7,2502.3,0.39965]
[1725047155977,0.39962,2502.6,2502.3,0.39965]
[1725047156183,0.39962,2502.6,2502.2,0.0059976]
[1725047156184,0.39963,2502.5,2502.2,0.4056476]
[1725047156484,0.39962,2502.5,2502.3,0.39964]
[1725047156985,0.39963,2502.4,2502.2,0.4056476]
[1725047157178,0.39963,2502.5,2502.2,0.0059976]
[1725047157383,0.39963,2502.5,2502.2,0.4056476]
[1725047157578,3.996,2502.4,2502.2,0.0059976]
[1725047157785,3.996,2502.4,2501.7,0.39974]
[1725047157786,0.3997,2502.0,2501.7,0.39974]
[1725047157979,3.6075,2502.0,2501.6,0.39975]
[1725047158180,0.39976,2501.7,2501.5,0.3772]
[1725047158382,0.39976,2501.7,2501.2,0.3715]
[1725047158383,0.39977,2501.6,2501.2,0.77132]
[1725047158582,0.39978,2501.5,2501.2,0.3715]
[1725047158786,0.39977,2501.6,2501.2,0.77132]
[1725047159187,3.2078,2501.7,2501.1,0.3831976]
[1725047159689,3.2078,2501.7,2501.1,0.0059976]
[1725047159690,0.39982,2501.2,2501.1,0.0059976]
[1725047160091,4.39822,2501.2,2501.1,0.0059976]
[1725047160288,0.0059976,2501.4,2501.1,4.0043976]
[1725047160483,0.0059976,2501.4,2501.2,0.3703]
[1725047160995,0.4057976,2501.4,2501.2,0.3703]
[1725047161784,0.0059976,2501.4,2501.2,0.3703]
[1725047161989,0.0059976,2501.4,2501.2,0.77011]
[1725047162195,3.9976,2501.3,2501.1,0.0059976]
[1725047162485,0.39982,2501.2,2501.1,0.0059976]
[1725047162893,4.39822,2501.2,2501.1,0.0059976]
[1725047164091,5.39779,2501.2,2501.1,0.0059976]
[1725047165398,0.0059976,2501.4,2501.1,0.0059976]
[1725047165591,1.39939,2501.2,2501.1,0.0059976]
[1725047165790,4.60719,2501.2,2501.1,0.0059976]
[1725047165987,8.60559,2501.2,2501.1,0.0059976]
[1725047166190,15.60516,2501.2,2501.1,7.6e-06]
[1725047166396,15.99286,2501.2,2501.1,7.6e-06]
[1725047168097,3.60762,2501.2,2501.1,7.6e-06]
[1725047168494,4.60719,2501.2,2501.1,7.6e-06]
[1725047168693,14.60559,2501.2,2501.1,7.6e-06]
[1725047168885,8.60559,2501.2,2501.1,7.6e-06]
[1725047169287,7.60602,2501.2,2501.1,7.6e-06]
[1725047169800,8.60559,2501.2,2501.1,7.6e-06]
[1725047170101,3.60762,2501.2,2501.1,7.6e-06]
[1725047170394,3.2078,2501.2,2501.1,7.6e-06]
[1725047170597,0.0059976,2501.4,2501.2,0.39981]
[1725047170785,0.0059976,2501.4,2501.3,0.39981]
[1725047171191,0.0059976,2501.4,2501.3,4.39741]
[1725047171701,3.2078,2501.8,2501.7,0.39974]
[1725047172096,3.60754,2501.8,2501.2,1.74885]
[1725047172293,3.60754,2501.8,2501.5,0.39977]
[1725047172493,3.2078,2501.8,2501.6,0.39976]
[1725047172692,3.2078,2501.8,2501.2,1.74885]
[1725047172892,3.60753,2501.8,2501.2,0.7493]
[1725047173094,0.39975,2501.7,2501.4,0.39978]
[1725047173300,0.39976,2501.6,2501.3,0.3998]
[1725047173602,3.2078,2501.8,2501.4,0.39979]
[1725047173603,0.39975,2501.7,2501.4,0.39979]
[1725047174198,0.99937,2501.7,2501.2,0.7493]
[1725047174502,3.2078,2501.8,2501.2,0.7493]
[1725047174503,0.39978,2501.5,2501.2,1.14911]
[1725047174797,0.39981,2501.4,2501.2,0.7493]
[1725047175199,0.39979,2501.5,2501.2,1.14911]
[1725047175399,0.39979,2501.5,2501.3,0.3998]
[1725047175599,0.3998,2501.4,2501.2,0.7493]
[1725047175794,3.2078,2501.8,2501.2,0.7493]
[1725047175997,0.39981,2501.3,2501.2,0.7493]
[1725047176190,0.39978,2501.5,2501.3,0.3998]
[1725047176401,0.39979,2501.4,2501.2,1.14911]
[1725047176607,0.39979,2501.4,2501.2,0.7493]
[1725047177903,0.39979,2501.4,2501.3,0.39981]
[1725047178107,0.0059976,2502.0,2501.3,11.8154]
[1725047178299,0.0059976,2502.0,2501.9,0.39971]
[1725047178498,3.2078,2502.6,2502.1,0.99918]
[1725047178702,0.39958,2502.8,2502.5,0.39962]
[1725047178905,0.39959,2502.7,2502.6,0.7347]
[1725047179696,0.39959,2502.7,2502.6,0.3602]
[1725047179902,0.39962,2502.5,2502.4,0.0059976]
[1725047180510,1.39867,2502.5,2502.4,0.0059976]
[1725047180710,5.39467,2502.5,2502.4,0.0059976]